{"text_format":"1","workbook":"xlsx","n_sheets":7,"sheets":["Титульный","СВОД","Форма 8.1.","Форма 8.3.","TEHSHEET","Форма 1.3.","Форма 1.9."],"not_rendered":{"charts":0,"images":0,"macros":1,"external_links":0,"defined_names":14,"comments":1,"pivot_tables":0},"unopened":[],"bounds":{"document_bytes":16777216,"sheet_cells":100000,"rows_first":2000,"rows_last":500,"rows_between":2000,"halvings":0,"cell_chars":16384,"cell_head_chars":4096},"cells_cut":0,"cells_raw":0,"read":"whole","date_system":"1900"}

{"sheet":"Титульный","index":0,"n_rows":16,"n_cols":6,"rows_kept":16,"cut":false,"hidden":false,"merged":[[3,4,3,5]]}
[]
[null,null,null,null,null,"Версия 1.0.0"]
[]
[null,null,null,null,"Расчет фактических значений показателей надежности и качества "]
[]
[null,null,null,null,"Субъект РФ","Тюменская область"]
[]
[null,null,null,null,"Период регулирования","2024"]
[]
[null,null,null,null,"Наименование  организации","ООО \"Агенство Интеллект-Сервис\""]
[]
[null,null,null,null,null,"Должностное лицо, ответственное за составление формы"]
[null,null,null,null,"Фамилия, имя, отчество","Ибрагимов Дамир Мирсатович"]
[null,null,null,null,"Должность","Заместитель главного инженера"]
[null,null,null,null,"Контактный телефон","8(3452)56-86-58 доб.112"]
[null,null,null,null,"e-mail","ibragimov-dm@aistmn.ru"]

{"sheet":"СВОД","index":1,"n_rows":65,"n_cols":9,"rows_kept":65,"cut":false,"hidden":false,"merged":[[60,2,60,3],[61,2,61,3],[62,2,62,3],[64,2,64,3],[32,1,32,3],[33,2,33,3],[34,2,34,3],[35,2,35,3],[59,1,59,3],[24,8,25,8],[24,1,25,1],[24,2,25,2],[24,3,24,4],[24,5,25,5],[3,1,4,1],[3,2,4,2],[55,1,55,6],[24,6,25,6],[24,7,25,7],[41,2,41,3],[11,2,12,2]]}
[]
[]
[null,"I - Расчет показателя уровня надежности оказываемых услуг"]
[null,"Показатель","Ед.изм.","Значение"]
[null,null,null,"факт"]
[null,1,2,3]
[null,"Показатель средней продолжительности прекращения передачи электрической энергии на точку поставки в каждом расчетном периоде регулирования в пределах долгосрочного периода регулирования (Пsaidi)","час",{"$f":"IF(ISERR(SUMPRODUCT((Столбец9*Столбец13)*(Столбец8=\"В\")*(Столбец27=1))/D$9),0,SUMPRODUCT((Столбец9*Столбец13)*(Столбец8=\"В\")*(Столбец27=1))/D$9)","v":0}]
[null,"Показатель средней частоты прекращения передачи электрической энергии на точку поставки в каждом расчетном периоде регулирования в пределах долгосрочного периода регулирования (Пsaifi)","шт",{"$f":"IF(ISERR(SUMIFS(Столбец13,Столбец8,\"В\",Столбец27,1)/D$9),0,SUMIFS(Столбец13,Столбец8,\"В\",Столбец27,1)/D$9)","v":0}]
[null,"Максимальное за год число точек поставки потребителей услуг сетевой организации\n","шт",{"$f":"'Форма 8.3.'!D5","v":964}]
[]
[null,"II - Расчет показателя уровня качества осуществляемого технологического присоединения к сети"]
[null,"Показатель","Ед.изм.","Значение"]
[null,"1. Показатель качства рассмотрения заявок на техлологическое присоединение к сети",null,"факт"]
[null,"1.1. Число поданных в соответствии с требованиями нормативных правовых актов заявок на технологическое присоединение к сети, по которым сетевой организацией в соответствующий расчетный период направлен проект договора об осуществлении технологического присоединения заявителей к сети, шт.","шт",1]
[null,"1.2. Число поданных в соответствии с требованиями нормативных правовых актов заявок на технологическое присоединение к сети, по которым сетевой организацией в соответствующий расчетный период направлен проект договора об осуществлении технологического присоединения заявителей к сети с нарушением установленных сроков его направления, шт.","шт",0]
[null,"Итого показатель качества рассмотрения заявок на технологическое присоединение к сети",null,{"$f":"D14/MAX(1,(D14-D15))","v":1}]
[null,"2. Показатель качества исполнения договоров об осуществлении технологического присоединения заявителей к сети"]
[null,"2.1. Число договоров об осуществлении технологического присоединения заявителей к сети, исполненных в соответствующем расчетном периоде и по которым имеется подписанный сторонами акт о технологическом присоединении, шт.","шт",1]
[null,"2.2. Число договоров об осуществлении технологического присоединения заявителей к сети, исполненных в соответствующем расчетном периоде и по которым имеется подписанный сторонами акт о технологическом присоединении и по которым произошло нарушение установленных сроков технологического присоединения, шт. При этом не учитываются договоры об осуществлении технологического присоединения заявителей к сети, сроки по которым нарушены в связи с неисполнением в срок обязательств по договору со стороны заявителей.","шт",0]
[null,"Итого показатель качества исполнения договоров об осуществлении технологического присоединение заявителей к  сети (П нс_тпр)",null,{"$f":"D18/MAX(1,(D18-D19))","v":1}]
[null,"Показатель уровня качества оказываемых услуг ТСО",null,{"$f":"IF((D16*0.5+D20*0.5)=0,0,IF((D16*0.5+D20*0.5)<1,1,(D16*0.5+D20*0.5)))","v":1}]
[null,null,{"$f":"C16*0.4+C20*0.4+#REF!*0.2","v":{"$error":"#REF!"}},{"$f":"D16*0.4+D20*0.4+#REF!*0.2","v":{"$error":"#REF!"}}]
[]
[null,"III - СВОД ПО ПОКАЗАТЕЛЯМ НАДЕЖНОСТИ И КАЧЕСТВА И РАСЧЕТ ОБОБЩЕННОГО ПОКАЗАТЕЛЯ"]
[null,"Показатель","Ед.изм.","Значение показателей надежности и качества",null,"Коэффициент допустимого отклонения показателя надежности и качества","Отметка о достижении показателя надежности и качества","Отметка о  достоверности отчетных данных","Определение коэффициентов надежности и качества"]
[null,null,null,"плановое","фактическое"]
[null,"Показатель средней продолжительности прекращения (Пsaidi)","-",{"$f":"SUMIFS(Пsaidi,ТСО,Титульный!$F$10,Год_отчет,Титульный!$F$8)","v":1.8554906734993399E-2},{"$f":"D7","v":0},{"$f":"IF($C$65<>0,IF(AND($B$63=$C$65,(1+(D27-E27)/D27)>1.3),29,IF($B$61=$C$65,35,30))/100,\"-\")","v":0.28999999999999998},{"$f":"IF(AND(E27=0,D27=0),\"достигнуто\",IF(E27<=D27*(1-F27),\"достигнуто с улучшением\",IF(E27<=D27*(1+F27),\"достигнуто\",\"не достигнуто\")))","v":"достигнуто с улучшением"},"+",{"$f":"IF(H27=\"-\",-1,IF(G27=\"достигнуто\",0,IF(G27=\"не достигнуто\",-1,1)))","v":1}]
[null,"Показатель средней частоты прекращения (Пsaifi)","-",{"$f":"SUMIFS(Пsaifi,ТСО,Титульный!$F$10,Год_отчет,Титульный!$F$8)","v":6.0061061836081779E-3},{"$f":"D8","v":0},{"$f":"IF($C$65<>0,IF(AND($B$63=$C$65,(1+(D28-E28)/D28)>1.3),29,IF($B$61=$C$65,35,30))/100,\"-\")","v":0.28999999999999998},{"$f":"IF(AND(E28=0,D28=0),\"достигнуто\",IF(AND(E28<=D28*(1-F28),D28),\"достигнуто с улучшением\",IF(E28<=D28*(1+F28),\"достигнуто\",\"не достигнуто\")))","v":"достигнуто с улучшением"},"+",{"$f":"IF(H28=\"-\",-1,IF(G28=\"достигнуто\",0,IF(G28=\"не достигнуто\",-1,1)))","v":1}]
[null,"Показатель уровня качества осуществляемого технологического присоединения к сети (Птпр)","-",{"$f":"SUMIFS(Птп,ТСО,Титульный!$F$10,Год_отчет,Титульный!$F$8)","v":1},{"$f":"D21","v":1},0.3,{"$f":"IF(AND(E29=0,D29=0),\"достигнуто\",IF(AND(E29<=D29*(1-F29),D29),\"достигнуто с улучшением\",IF(E29<=D29*(1+F29),\"достигнуто\",\"не достигнуто\")))","v":"достигнуто"},"+",{"$f":"IF(H29=\"-\",-1,IF(G29=\"достигнуто\",0,IF(G29=\"не достигнуто\",-1,1)))","v":0}]
[]
[null,"Коэффициенты допустимого отклонения показателей надежности и качества"]
[null,"Организация/период","К показателю надежности","К показателю качества"]
[null,"Прочие ТСО"]
[null,"Первые три года первого периода регулирования",0.35]
[null,"Последующие годы первого периода регулирования",0.3]
[null,"Последующие годы","Поэтапное (1% в год) от 30% до 25% "]
[]
[null,"Значения обобщенного показателя надежности и качества"]
[null,"ТСО",{"$f":"I27*C43+I28*D43+I29*E43","v":0.6}]
[]
[null,"Коэффициенты значимости коэффициентов надежности и качества"]
[null,"Организация","Коэффициенты надежности",null,"Коэффициент качества"]
[null,"ТСО",0.3,0.3,0.3]
[]
[null,"IV - Расчет корректировки НВВ по показателям надежности и качества"]
[]
[]
[null,"Коэффициент корректировки"]
[null,"Процент корректрировки на текущий год при представлении достоверных отчетных данных",{"$f":"2%*C39","v":1.2E-2}]
[]
[]
[null,"Справочно:"]
[null,"Коэффициент корректировки в случае непредставления отчетных данных",-0.03]
[null,"Предельный процент отклонения отчетных данных организации от данных Технадзора, ФАС, Фед. Службы по защите прав потребителей, Системного Оператора, при превышении которого, данные признаются недостоверными"]
[null,"на 2013 год и далее",0.1]
[null,"При представлении для расчета какого-либо показателя недостоверных отчетных данных, индикатор выполнения по показателю (Кнад и/или Ккач1, Ккач2)  признается равным -1"]
[]
[null,"Коэффициенты допустимого отклонения показателей надежности и качества"]
[null,"Организация/период","К показателю надежности","К показателю качества"]
[null,"ТСО"]
[null,"первые три расчетные периода первого долгосрочного периода",0.35]
[null,"остальные расчетные периоды первого долгосрочного периода",0.3]
[null,"расчетыне периоды последующих долгосрочных периодов","Поэтапное (1% в год) от 30% до 25% "]
[]
[null,"Переход на долгосрочное регулирование ТСО",{"$f":"IF(Титульный!F10<>0,IF(Титульный!F10=TEHSHEET!Q67,СВОД!B61,СВОД!B63),\"-\")","v":"расчетыне периоды последующих долгосрочных периодов"}]

{"sheet":"Форма 8.1.","index":2,"n_rows":14,"n_cols":29,"rows_kept":14,"cut":false,"hidden":false,"merged":[[1,4,1,26],[3,1,7,1],[12,2,12,4],[3,28,6,28],[4,2,6,2],[4,3,6,3],[4,4,6,4],[4,5,6,5],[4,6,6,6],[4,7,6,7],[4,8,6,8],[4,9,6,9],[4,10,6,10],[5,26,6,26],[5,27,6,27],[4,23,6,23],[3,2,3,10],[5,25,6,25],[5,22,6,22],[4,14,4,22],[4,13,6,13],[4,12,6,12],[5,14,6,14],[5,15,5,17],[5,18,5,21],[4,11,6,11],[3,25,4,27],[3,24,6,24],[3,11,3,23]]}
[]
[null,null,null,null,"Форма 8.1. Журнал учета данных первичной информации по всем \nпрекращениям передачи электрической энергии, произошедшим на объектах сетевой организации"]
[]
[null,null,"Данные о факте прекращения передачи электрической энергии",null,null,null,null,null,null,null,null,"Данные о масштабе прекращения передачи электрической энергии в сетевой организации",null,null,null,null,null,null,null,null,null,null,null,null,"Перечень смежных сетевых организаций, затронутых прекращением передачи электрической энергии","Данные о причинах прекращения передачи электрической энергии и их расследовании",null,null,"Учет в показателях надежности, в т.ч. индикативных показателях надежности (0 - нет, 1 - да)"]
[null,null,"Номер прекращения передачи электрической энергии / Номер итоговой строки","Наименование структурной единицы сетевой организации ","Вид объекта: КЛ, ВЛ, КВЛ, ПС, ТП, РП","Диспетчерское наименование объекта электросетевого хозяйства сетевой организации, в результате отключения которой произошло прекращение передачи электроэнергии потребителям услуг ","Высший класс напряжения отключенного оборудования сетевой организации, кВ","Время и дата начала прекращения передачи электрической энергии (часы, минуты, ГГГГ.ММ.ДД)","Время и дата восстановления режима потребления электрической энергии потребителей услуг (часы, минуты, ГГГГ.ММ.ДД)","Вид прекращения передачи электроэнергии (П, А, В)","Продолжительность прекращения передачи электрической энергии, час","Перечень объектов электросетевого хозяйства, отключение которых привело к прекращению передачи электрической энергии потребителям услуг (ПС, ТП, РП, ВЛ, КЛ)","Перечень потребителей 1-й и 2-й категорий надежности, в отношении которых произошло полное ограничение режима потребления электрической энергии","Перечень потребителей 1-й и 2-й категорий надежности, в отношении которых произошло частичное ограничение режима потребления электрической энергии","Количество точек поставки потребителей услуг сетевой организации, в отношении которых произошел перерыв электроснабжения, шт., в том числе:",null,null,null,null,null,null,null,null,"Суммарный объем фактической нагрузки (мощности) на присоединениях потребителей услуг, по которым произошло прекращение передачи электрической энергии на момент возникновения такого события, кВт"]
[null,null,null,null,null,null,null,null,null,null,null,null,null,null,"ВСЕГО","в разделении категорий надежности потребителей электрической энергии",null,null,"в разделении уровней напряжения ЭПУ потребителя электрической энергии",null,null,null,"Смежные сетевые организации и производители электрической энергии",null,null,"Номер и дата акта расследования технологического нарушения, записи в оперативном журнале","Код организационной причины аварии","Код технической причины повреждения оборудования"]
[null,null,null,null,null,null,null,null,null,null,null,null,null,null,null,"1-я категория надежности","2-я категория надежности","3-я категория надежности","ВН (110 кВ и выше)","СН1 (35 кВ)","СН2 (6-20 кВ)","НН (0,22-1 кВ)"]
[null,null,1,2,3,4,5,6,7,8,9,10,11,12,13,14,15,16,17,18,19,20,21,22,23,24,25,26,27]
[]
[]
[]
[]
[null,null,"Добавить строку"]
[null," X "]

{"sheet":"Форма 8.3.","index":3,"n_rows":13,"n_cols":5,"rows_kept":13,"cut":false,"hidden":false,"merged":[[1,1,1,4]]}
[]
[null,"Форма 8.3. Расчет индикативного показателя уровня надежности оказываемых услуг для территориальных сетевых организаций и организаций по управлению единой национальной (общероссийской) электрической сетью"]
[]
[null,"№\nп/п","Наименование составляющей показателя","Метод определения"]
[null,1,"Максимальное за расчетный период регулирования число точек поставки сетевой организации, шт., в том числе\nв разбивке по уровням напряжения:",{"$f":"SUM(D6:D9)","v":964},"В соответствии с заключенными договорами \nпо передаче электрической энергии"]
[null,"1.1","ВН (110 кВ и выше), шт.",18,"В соответствии с заключенными договорами \nпо передаче электрической энергии"]
[null,"1.2","СН-1 (35 кВ), шт.",0,"В соответствии с заключенными договорами \nпо передаче электрической энергии"]
[null,"1.3","СН-2 (6 - 20 кВ), шт.",107,"В соответствии с заключенными договорами \nпо передаче электрической энергии"]
[null,"1.4","НН (до 1 кВ), шт.",839,"В соответствии с заключенными договорами \nпо передаче электрической энергии"]
[null,"2","Средняя продолжительность прекращения передачи электрической энергии на точку поставки (Пsaidi), час.",{"$f":"IF(ISERR(SUMPRODUCT((Столбец9*Столбец13)*(Столбец8=\"В\")*(Столбец27=1))/D$5),0,SUMPRODUCT((Столбец9*Столбец13)*(Столбец8=\"В\")*(Столбец27=1))/D$5)","v":0},"сумма произведений по столбцу 9 и столбцу 13 \nФормы 8.1, деленная на значение пункта 1 \nФормы 8.3\n((∑ столбец 9 * столбец 13) / пункт 1 Формы 8.3)\nПри этом учитываются только те события, по которым значения в столбце 8 равны \"В\", а в столбце 27 равны 1"]
[null,"3","Средняя частота прекращений передачи электрической энергии на точку поставки (Пsaifi), шт.",{"$f":"IF(ISERR(SUMIFS(Столбец13,Столбец8,\"В\",Столбец27,1)/D$5),0,SUMIFS(Столбец13,Столбец8,\"В\",Столбец27,1)/D$5)","v":0},"сумма по столбцу 13 Формы 8.1 и деленная на значение пункта 1 Формы 8.3\n(∑ столбец 13 Формы 8.1 / пункт 1 Формы 8.3)\nПри этом учитываются только те события, по которым значения в столбце 8 равны \"В\", а в столбце 27 равны 1"]
[null,"4","Средняя продолжительность прекращения передачи электрической энергии при проведении ремонтных работ (Пsaidi), час.",{"$f":"IF(ISERR(SUMPRODUCT((Столбец9*Столбец13)*(Столбец8=\"П\"))/D$5),0,SUMPRODUCT((Столбец9*Столбец13)*(Столбец8=\"П\"))/D$5)","v":0},"сумма произведений по столбцу 9 и столбцу 13 Формы 8.1, деленная на значение пункта 1\nФормы 8.3\n((∑ столбец 9 * столбец 13) / пункт 1 Формы 8.3)\nПри этом учитываются только те события, по которым значения в столбце 8 равны \"П\""]
[null,"5","Средняя частота прекращений передачи электрической энергии при проведении ремонтных работ (Пsaifi), шт.",{"$f":"IF(ISERR(SUMIFS(Столбец13,Столбец8,\"П\")/D$5),0,SUMIFS(Столбец13,Столбец8,\"П\")/D$5)","v":0},"сумма по столбцу 13 Формы 8.1 и деленная\nна значение пункта 1 Формы 8.3\n(∑ столбец 13 Формы 8.1 / пункт 1 Формы 8.3)\nПри этом учитываются только те события, по которым значения в столбце 8 равны \"П\""]

{"sheet":"TEHSHEET","index":4,"n_rows":206,"n_cols":21,"rows_kept":206,"cut":false,"hidden":true,"merged":[]}
[null,null,null,null,null,null,null,null,null,null,null,null,null,null,null,null,null,null,"Показатель средней продолжительности прекращения передачи электрической энергии на точку поставки","Показатель средней частоты прекращения передачи электрической энергии на точку поставки","Показатель уровня качества оказываемых услуг"]
[null,null,null,null,null,null,null,null,null,null,null,null,null,null,null,1,"Филиал ОАО \"РЖД\" Трансэнерго Свердловская дирекция по энергообеспечению (по сетям Ишимской, Егоршинской, Серовской, Тюменской дистанций электроснабжения)",2020,0.50509999999999999,0.20380000000000001,1.0253000000000001]
[null,null,null,null,null,null,null,null,null,null,null,null,"до 2024",null,null,null,"Филиал ОАО \"РЖД\" Трансэнерго Свердловская дирекция по энергообеспечению (по сетям Ишимской, Егоршинской, Серовской, Тюменской дистанций электроснабжения)",2021,0.4975,0.20080000000000001,1.0099]
[null,null,null,null,null,"техпрес",null,null,null,null,null,null,null,null,null,null,"Филиал ОАО \"РЖД\" Трансэнерго Свердловская дирекция по энергообеспечению (по сетям Ишимской, Егоршинской, Серовской, Тюменской дистанций электроснабжения)",2022,0.49009999999999998,0.19769999999999999,1]
[null,null,null,null,null,null,null,null,null,null,null,null,null,null,null,null,"Филиал ОАО \"РЖД\" Трансэнерго Свердловская дирекция по энергообеспечению (по сетям Ишимской, Егоршинской, Серовской, Тюменской дистанций электроснабжения)",2023,0.48270000000000002,0.1948,1]
[null,null,null,null,null,null,null,null,null,null,null,null,null,null,null,null,"Филиал ОАО \"РЖД\" Трансэнерго Свердловская дирекция по энергообеспечению (по сетям Ишимской, Егоршинской, Серовской, Тюменской дистанций электроснабжения)",2024,0.47549999999999998,0.19189999999999999,1]
[null,null,null,null,null,null,null,null,null,null,null,null,null,null,null,2,"Филиал \"Уральский\" АО \"Оборонэнерго\"",2020,4.4021999999999997,0.42809999999999998,1]
[null,null,null,null,null,null,null,null,null,null,null,null,null,null,null,null,"Филиал \"Уральский\" АО \"Оборонэнерго\"",2021,4.3361999999999998,0.42159999999999997,1]
[null,null,null,null,null,null,null,null,null,null,null,null,null,null,null,null,"Филиал \"Уральский\" АО \"Оборонэнерго\"",2022,4.2710999999999997,0.4153,1]
[null,null,null,null,null,null,null,null,null,null,null,null,null,null,null,null,"Филиал \"Уральский\" АО \"Оборонэнерго\"",2023,4.2070999999999996,0.40910000000000002,1]
[null,null,null,null,null,null,null,null,null,null,null,null,null,null,null,null,"Филиал \"Уральский\" АО \"Оборонэнерго\"",2024,4.1439000000000004,0.40289999999999998,1]
[null,null,null,null,null,null,null,null,null,null,null,null,null,null,null,3,"ООО \"Агенство Интеллект-Сервис\"",2022,1.9124333773087067E-2,6.1904261213720302E-3,1]
[null,null,null,null,null,null,null,null,null,null,null,null,null,null,null,null,"ООО \"Агенство Интеллект-Сервис\"",2023,1.8837468766490759E-2,6.0975697295514494E-3,1]
[null,null,null,null,null,null,null,null,null,null,null,null,null,null,null,null,"ООО \"Агенство Интеллект-Сервис\"",2024,1.8554906734993399E-2,6.0061061836081779E-3,1]
[null,null,null,null,null,null,null,null,null,null,null,null,null,null,null,null,"ООО \"Агенство Интеллект-Сервис\"",2025,1.8276583133968499E-2,5.9160145908540547E-3,1]
[null,null,null,null,null,null,null,null,null,null,null,null,null,null,null,null,"ООО \"Агенство Интеллект-Сервис\"",2026,1.800243438695897E-2,5.8272743719912437E-3,1]
[null,null,null,null,null,null,null,null,null,null,null,null,null,null,null,4,"ООО СК \"Восток\"",2020,0.22459999999999999,0.18010000000000001,1]
[null,null,null,null,null,null,null,null,null,null,null,null,null,null,null,null,"ООО СК \"Восток\"",2021,0.22120000000000001,0.1774,1]
[null,null,null,null,null,null,null,null,null,null,null,null,null,null,null,null,"ООО СК \"Восток\"",2022,0.21790000000000001,0.17469999999999999,1]
[null,null,null,null,null,null,null,null,null,null,null,null,null,null,null,null,"ООО СК \"Восток\"",2023,0.21460000000000001,0.1721,1]
[null,null,null,null,null,null,null,null,null,null,null,null,null,null,null,null,"ООО СК \"Восток\"",2024,0.2114,0.16950000000000001,1]
[null,null,null,null,null,null,null,null,null,null,null,null,null,null,null,5,"АО \"Ханты-Мансийские городские электрические сети\"",2020,0.1789,9.3700000000000006E-2,1.0709]
[null,null,"частота план","факт",null,null,null,null,null,null,null,null,null,null,null,null,"АО \"Ханты-Мансийские городские электрические сети\"",2021,0.1762,9.2299999999999993E-2,1.0548]
[null,null,{"$f":"SUMIFS(R2:R91,T2:T91,#REF!,Q2:Q91,#REF!)","v":0},null,null,null,null,null,null,null,null,null,null,null,null,null,"АО \"Ханты-Мансийские городские электрические сети\"",2022,0.1736,9.0899999999999995E-2,1.0389999999999999]
[null,null,null,null,null,null,null,null,null,null,null,null,null,null,null,null,"АО \"Ханты-Мансийские городские электрические сети\"",2023,0.17100000000000001,8.9499999999999996E-2,1.0234000000000001]
[null,null,null,null,null,null,null,null,null,null,null,null,null,null,null,null,"АО \"Ханты-Мансийские городские электрические сети\"",2024,0.16839999999999999,8.8200000000000001E-2,1.008]
[null,null,null,null,null,null,null,null,null,null,null,null,null,null,null,6,"АО \"Варьеганэнергонефть\"",2020,0.28660000000000002,0.22850000000000001,1]
[null,null,null,null,null,null,null,null,null,null,null,null,null,null,null,null,"АО \"Варьеганэнергонефть\"",2021,0.2823,0.22509999999999999,1]
[null,null,null,null,null,null,null,null,null,null,null,null,null,null,null,null,"АО \"Варьеганэнергонефть\"",2022,0.27800000000000002,0.22170000000000001,1]
[null,null,null,null,null,null,null,null,null,null,null,null,null,null,null,null,"АО \"Варьеганэнергонефть\"",2023,0.27389999999999998,0.21840000000000001,1]
[null,null,null,null,null,null,null,null,null,null,null,null,null,null,null,null,"АО \"Варьеганэнергонефть\"",2024,0.2697,0.21510000000000001,1]
[null,null,null,null,null,null,null,null,null,null,null,null,null,null,null,7,"Филиал ОАО «РЖД» Трансэнерго Свердловская дирекция по энергообеспечению (по сетям Сургутской дистанции электроснабжения)",2020,0.1653,0.31509999999999999,1.1382000000000001]
[null,null,null,null,null,null,null,null,null,null,null,null,null,null,null,null,"Филиал ОАО «РЖД» Трансэнерго Свердловская дирекция по энергообеспечению (по сетям Сургутской дистанции электроснабжения)",2021,0.1628,0.31040000000000001,1.1211]
[null,null,null,null,null,null,null,null,null,null,null,null,null,null,null,null,"Филиал ОАО «РЖД» Трансэнерго Свердловская дирекция по энергообеспечению (по сетям Сургутской дистанции электроснабжения)",2022,0.16039999999999999,0.30570000000000003,1.1043000000000001]
[null,null,null,null,null,null,null,null,null,null,null,null,null,null,null,null,"Филиал ОАО «РЖД» Трансэнерго Свердловская дирекция по энергообеспечению (по сетям Сургутской дистанции электроснабжения)",2023,0.158,0.30109999999999998,1.0878000000000001]
[null,null,null,null,null,null,null,null,null,null,null,null,null,null,null,null,"Филиал ОАО «РЖД» Трансэнерго Свердловская дирекция по энергообеспечению (по сетям Сургутской дистанции электроснабжения)",2024,0.15559999999999999,0.29659999999999997,1.0714999999999999]
[null,null,null,null,null,null,null,null,null,null,null,null,null,null,null,8,"ПАО «Сургутнефтегаз»",2020,0.15179999999999999,4.3799999999999999E-2,1]
[null,null,null,null,null,null,null,null,null,null,null,null,null,null,null,null,"ПАО «Сургутнефтегаз»",2021,0.14949999999999999,4.3200000000000002E-2,1]
[null,null,null,null,null,null,null,null,null,null,null,null,null,null,null,null,"ПАО «Сургутнефтегаз»",2022,0.14729999999999999,4.2500000000000003E-2,1]
[null,null,null,null,null,null,null,null,null,null,null,null,null,null,null,null,"ПАО «Сургутнефтегаз»",2023,0.14510000000000001,4.19E-2,1]
[null,null,null,null,null,null,null,null,null,null,null,null,null,null,null,null,"ПАО «Сургутнефтегаз»",2024,0.1429,4.1200000000000001E-2,1]
[null,null,null,null,null,null,null,null,null,null,null,null,null,null,null,9,"МУП «Сургутские районные электрические сети» муниципального образования Сургутский район",2020,1.1999999999999999E-3,5.7000000000000002E-3,1]
[null,null,null,null,null,null,null,null,null,null,null,null,null,null,null,null,"МУП «Сургутские районные электрические сети» муниципального образования Сургутский район",2021,1.1999999999999999E-3,5.5999999999999999E-3,1]
[null,null,null,null,null,null,null,null,null,null,null,null,null,null,null,null,"МУП «Сургутские районные электрические сети» муниципального образования Сургутский район",2022,1.1000000000000001E-3,5.4999999999999997E-3,1]
[null,null,null,null,null,null,null,null,null,null,null,null,null,null,null,null,"МУП «Сургутские районные электрические сети» муниципального образования Сургутский район",2023,1.1000000000000001E-3,5.4000000000000003E-3,1]
[null,null,null,null,null,null,null,null,null,null,null,null,null,null,null,null,"МУП «Сургутские районные электрические сети» муниципального образования Сургутский район",2024,1.1000000000000001E-3,5.4000000000000003E-3,1]
[null,null,null,null,null,null,null,null,null,null,null,null,null,null,null,10,"ООО «РН-Юганскнефтегаз»",2020,0.252,0.13519999999999999,1]
[null,null,null,null,null,null,null,null,null,null,null,null,null,null,null,null,"ООО «РН-Юганскнефтегаз»",2021,0.2482,0.13320000000000001,1]
[null,null,null,null,null,null,null,null,null,null,null,null,null,null,null,null,"ООО «РН-Юганскнефтегаз»",2022,0.2445,0.13120000000000001,1]
[null,null,null,null,null,null,null,null,null,null,null,null,null,null,null,null,"ООО «РН-Юганскнефтегаз»",2023,0.24079999999999999,0.12920000000000001,1]
[null,null,null,null,null,null,null,null,null,null,null,null,null,null,null,null,"ООО «РН-Юганскнефтегаз»",2024,0.23719999999999999,0.1273,1]
[null,null,null,null,null,null,null,null,null,null,null,null,null,null,null,11,"ООО «Газпром энерго»",2020,1.7100000000000001E-2,6.9999999999999999E-4,1]
[null,null,null,null,null,null,null,null,null,null,null,null,null,null,null,null,"ООО «Газпром энерго»",2021,1.6799999999999999E-2,6.9999999999999999E-4,1]
[null,null,null,null,null,null,null,null,null,null,null,null,null,null,null,null,"ООО «Газпром энерго»",2022,1.66E-2,6.9999999999999999E-4,1]
[null,null,null,null,null,null,null,null,null,null,null,null,null,null,null,null,"ООО «Газпром энерго»",2023,1.6299999999999999E-2,6.9999999999999999E-4,1]
[null,null,null,null,null,null,null,null,null,null,null,null,null,null,null,null,"ООО «Газпром энерго»",2024,1.61E-2,6.9999999999999999E-4,1]
[null,null,null,null,null,null,null,null,null,null,null,null,null,null,null,12,"ООО «Газпромнефть-Хантос»",2020,0,0,1]
[null,null,null,null,null,null,null,null,null,null,null,null,null,null,null,null,"ООО «Газпромнефть-Хантос»",2021,0,0,1]
[null,null,null,null,null,null,null,null,null,null,null,null,null,null,null,null,"ООО «Газпромнефть-Хантос»",2022,0,0,1]
[null,null,null,null,null,null,null,null,null,null,null,null,null,null,null,null,"ООО «Газпромнефть-Хантос»",2023,0,0,1]
[null,null,null,null,null,null,null,null,null,null,null,null,null,null,null,null,"ООО «Газпромнефть-Хантос»",2024,0,0,1]
[null,null,null,null,null,null,null,null,null,null,null,null,null,null,null,13,"АО \"Уренгойская электросетевая компания",2020,0.32869999999999999,0.1469,1]
[null,null,null,null,null,null,null,null,null,null,null,null,null,null,null,null,"АО \"Уренгойская электросетевая компания",2021,0.32379999999999998,0.1447,1]
[null,null,null,null,null,null,null,null,null,null,null,null,null,null,null,null,"АО \"Уренгойская электросетевая компания",2022,0.31890000000000002,0.14249999999999999,1]
[null,null,null,null,null,null,null,null,null,null,null,null,null,null,null,null,"АО \"Уренгойская электросетевая компания",2023,0.31409999999999999,0.1404,1]
[null,null,null,null,null,null,null,null,null,null,null,null,null,null,null,null,"АО \"Уренгойская электросетевая компания",2024,0.30940000000000001,0.13830000000000001,1]
[null,null,null,null,null,null,null,null,null,null,null,null,null,null,null,14," ООО \"Элеконт\"",2023,0.1123574144486692,5.6178707224334599E-3,1]
[null,null,null,null,null,null,null,null,null,null,null,null,null,null,null,null," ООО \"Элеконт\"",2024,0.11067205323193917,5.5336026615969581E-3,1]
[null,null,null,null,null,null,null,null,null,null,null,null,null,null,null,null," ООО \"Элеконт\"",2025,0.10901197243346009,5.4505986216730039E-3,1]
[null,null,null,null,null,null,null,null,null,null,null,null,null,null,null,null," ООО \"Элеконт\"",2026,0.10737679284695818,5.3688396423479086E-3,1]
[null,null,null,null,null,null,null,null,null,null,null,null,null,null,null,null," ООО \"Элеконт\"",2027,0.10576614095425381,5.2883070477126896E-3,1]
[null,null,null,null,null,null,null,null,null,null,null,null,null,null,null,15,"ООО «Газпромнефть Энергосистемы»",2020,8.6999999999999994E-3,5.3E-3,1]
[null,null,null,null,null,null,null,null,null,null,null,null,null,null,null,null,"ООО «Газпромнефть Энергосистемы»",2021,8.6E-3,5.1999999999999998E-3,1]
[null,null,null,null,null,null,null,null,null,null,null,null,null,null,null,null,"ООО «Газпромнефть Энергосистемы»",2022,8.3999999999999995E-3,5.1000000000000004E-3,1]
[null,null,null,null,null,null,null,null,null,null,null,null,null,null,null,null,"ООО «Газпромнефть Энергосистемы»",2023,8.3000000000000001E-3,5.1000000000000004E-3,1]
[null,null,null,null,null,null,null,null,null,null,null,null,null,null,null,null,"ООО «Газпромнефть Энергосистемы»",2024,8.2000000000000007E-3,5.0000000000000001E-3,1]
[null,null,null,null,null,null,null,null,null,null,null,null,null,null,null,16,"АО «Энерго-Газ-Ноябрьск»",2020,0.40899999999999997,0.1739,1]
[null,null,null,null,null,null,null,null,null,null,null,null,null,null,null,null,"АО «Энерго-Газ-Ноябрьск»",2021,0.40279999999999999,0.17130000000000001,1]
[null,null,null,null,null,null,null,null,null,null,null,null,null,null,null,null,"АО «Энерго-Газ-Ноябрьск»",2022,0.39679999999999999,0.16869999999999999,1]
[null,null,null,null,null,null,null,null,null,null,null,null,null,null,null,null,"АО «Энерго-Газ-Ноябрьск»",2023,0.39090000000000003,0.16619999999999999,1]
[null,null,null,null,null,null,null,null,null,null,null,null,null,null,null,null,"АО «Энерго-Газ-Ноябрьск»",2024,0.38500000000000001,0.16370000000000001,1]
[null,null,null,null,null,null,null,null,null,null,null,null,null,null,null,17,"АО «Губкинские городские электрические сети»",2020,0.13789999999999999,3.9399999999999998E-2,1]
[null,null,null,null,null,null,null,null,null,null,null,null,null,null,null,null,"АО «Губкинские городские электрические сети»",2021,0.1358,3.8800000000000001E-2,1]
[null,null,null,null,null,null,null,null,null,null,null,null,null,null,null,null,"АО «Губкинские городские электрические сети»",2022,0.1338,3.8199999999999998E-2,1]
[null,null,null,null,null,null,null,null,null,null,null,null,null,null,null,null,"АО «Губкинские городские электрические сети»",2023,0.1318,3.7699999999999997E-2,1]
[null,null,null,null,null,null,null,null,null,null,null,null,null,null,null,null,"АО «Губкинские городские электрические сети»",2024,0.1298,3.7100000000000001E-2,1]
[null,null,null,null,null,null,null,null,null,null,null,null,null,null,null,18,"АО «Надымские городские электрические сети»",2020,6.8400000000000002E-2,2.35E-2,1]
[null,null,null,null,null,null,null,null,null,null,null,null,null,null,null,null,"АО «Надымские городские электрические сети»",2021,6.7400000000000002E-2,2.3099999999999999E-2,1]
[null,null,null,null,null,null,null,null,null,null,null,null,null,null,null,null,"АО «Надымские городские электрические сети»",2022,6.6400000000000001E-2,2.2800000000000001E-2,1]
[null,null,null,null,null,null,null,null,null,null,null,null,null,null,null,null,"АО «Надымские городские электрические сети»",2023,6.54E-2,2.24E-2,1]
[null,null,null,null,null,null,null,null,null,null,null,null,null,null,null,null,"АО «Надымские городские электрические сети»",2024,6.4399999999999999E-2,2.2100000000000002E-2,1]
[null,null,null,null,null,null,null,null,null,null,null,null,null,null,null,19,"АО \"Горэлектросеть\"",2023,5.2500499999999999E-2,3.5164500000000001E-2,1]
[null,null,null,null,null,null,null,null,null,null,null,null,null,null,null,null,"АО \"Горэлектросеть\"",2024,5.1712992499999999E-2,3.4637032499999998E-2,1]
[null,null,null,null,null,null,null,null,null,null,null,null,null,null,null,null,"АО \"Горэлектросеть\"",2025,5.0937297612500002E-2,3.4117477012499994E-2,1]
[null,null,null,null,null,null,null,null,null,null,null,null,null,null,null,null,"АО \"Горэлектросеть\"",2026,5.0173238148312503E-2,3.3605714857312494E-2,1]
[null,null,null,null,null,null,null,null,null,null,null,null,null,null,null,null,"АО \"Горэлектросеть\"",2027,4.9420639576087812E-2,3.3101629134452804E-2,1]
[null,null,null,null,null,null,null,null,null,null,null,null,null,null,null,20,"АО \"Россети Тюмень\"",2023,0.21502549999999998,0.19552250000000002,1.0737214362441394]
[null,null,null,null,null,null,null,null,null,null,null,null,null,null,null,null,"АО \"Россети Тюмень\"",2024,0.21180011749999997,0.19258966250000001,1.0576156147004774]
[null,null,null,null,null,null,null,null,null,null,null,null,null,null,null,null,"АО \"Россети Тюмень\"",2025,0.20862311573749998,0.18970081756250001,1.0417513804799703]
[null,null,null,null,null,null,null,null,null,null,null,null,null,null,null,null,"АО \"Россети Тюмень\"",2026,0.20549376900143748,0.1868553052990625,1.0261251097727708]
[null,null,null,null,null,null,null,null,null,null,null,null,null,null,null,null,"АО \"Россети Тюмень\"",2027,0.20241136246641592,0.18405247571957656,1.0107332331261794]
[null,null,null,null,null,null,null,null,null,null,null,null,null,null,null,21,"АО \"Югорская территориальная энергетическая компания - Региональные сети\"",2023,0.93750967312294908,0.30196625586248454,1]
[null,null,null,null,null,null,null,null,null,null,null,null,null,null,null,null,"АО \"Югорская территориальная энергетическая компания - Региональные сети\"",2024,0.92344702802610479,0.29743676202454727,1]
[null,null,null,null,null,null,null,null,null,null,null,null,null,null,null,null,"АО \"Югорская территориальная энергетическая компания - Региональные сети\"",2025,0.90959532260571319,0.29297521059417908,1]
[null,null,null,null,null,null,null,null,null,null,null,null,null,null,null,null,"АО \"Югорская территориальная энергетическая компания - Региональные сети\"",2026,0.8959513927666275,0.28858058243526641,1]
[null,null,null,null,null,null,null,null,null,null,null,null,null,null,null,null,"АО \"Югорская территориальная энергетическая компания - Региональные сети\"",2027,0.88251212187512806,0.28425187369873739,1]
[null,null,null,null,null,null,null,null,null,null,null,null,null,null,null,22,"ООО \"Сургутские городские электрические сети\"",2023,4.2118599999999999E-2,2.1305549999999999E-2,1]
[null,null,null,null,null,null,null,null,null,null,null,null,null,null,null,null,"ООО \"Сургутские городские электрические сети\"",2024,4.1486821E-2,2.0985966749999998E-2,1]
[null,null,null,null,null,null,null,null,null,null,null,null,null,null,null,null,"ООО \"Сургутские городские электрические сети\"",2025,4.0864518684999997E-2,2.0671177248749999E-2,1]
[null,null,null,null,null,null,null,null,null,null,null,null,null,null,null,null,"ООО \"Сургутские городские электрические сети\"",2026,4.0251550904724993E-2,2.0361109590018748E-2,1]
[null,null,null,null,null,null,null,null,null,null,null,null,null,null,null,null,"ООО \"Сургутские городские электрические сети\"",2027,3.9647777641154118E-2,2.0055692946168466E-2,1]
[null,null,null,null,null,null,null,null,null,null,null,null,null,null,null,23,"АО \"ЮРЭСК\"",2023,2.9871766666666667E-2,2.012683333333333E-2,1.0790972059013821]
[null,null,null,null,null,null,null,null,null,null,null,null,null,null,null,null,"АО \"ЮРЭСК\"",2024,2.9423690166666665E-2,1.982493083333333E-2,1.0629107478128614]
[null,null,null,null,null,null,null,null,null,null,null,null,null,null,null,null,"АО \"ЮРЭСК\"",2025,2.8982334814166667E-2,1.9527556870833331E-2,1.0469670865956684]
[null,null,null,null,null,null,null,null,null,null,null,null,null,null,null,null,"АО \"ЮРЭСК\"",2026,2.8547599791954165E-2,1.9234643517770829E-2,1]
[null,null,null,null,null,null,null,null,null,null,null,null,null,null,null,null,"АО \"ЮРЭСК\"",2027,2.8119385795074853E-2,1.8946123865004265E-2,1]
[null,null,null,null,null,null,null,null,null,null,null,null,null,null,null,24,"ООО \"Региональная энергетическая компания\"",2021,0.42430000000000001,0.1108,1]
[null,null,null,null,null,null,null,null,null,null,null,null,null,null,null,null,"ООО \"Региональная энергетическая компания\"",2022,0.41799999999999998,0.10920000000000001,1]
[null,null,null,null,null,null,null,null,null,null,null,null,null,null,null,null,"ООО \"Региональная энергетическая компания\"",2023,0.41170000000000001,0.1075,1]
[null,null,null,null,null,null,null,null,null,null,null,null,null,null,null,null,"ООО \"Региональная энергетическая компания\"",2024,0.40550000000000003,0.10589999999999999,1]
[null,null,null,null,null,null,null,null,null,null,null,null,null,null,null,null,"ООО \"Региональная энергетическая компания\"",2025,0.39950000000000002,0.1043,1]
[null,null,null,null,null,null,null,null,null,null,null,null,null,null,null,25,"ООО \"СеверСетьРазвитие\"",2021,0,0,1]
[null,null,null,null,null,null,null,null,null,null,null,null,null,null,null,null,"ООО \"СеверСетьРазвитие\"",2022,0,0,1]
[null,null,null,null,null,null,null,null,null,null,null,null,null,null,null,null,"ООО \"СеверСетьРазвитие\"",2023,0,0,1]
[null,null,null,null,null,null,null,null,null,null,null,null,null,null,null,null,"ООО \"СеверСетьРазвитие\"",2024,0,0,1]
[null,null,null,null,null,null,null,null,null,null,null,null,null,null,null,null,"ООО \"СеверСетьРазвитие\"",2025,0,0,1]
[null,null,null,null,null,null,null,null,null,null,null,null,null,null,null,26,"ООО \"Энергонефть Томск\"",2021,3.1E-2,0.26450000000000001,1]
[null,null,null,null,null,null,null,null,null,null,null,null,null,null,null,null,"ООО \"Энергонефть Томск\"",2022,3.0499999999999999E-2,0.26050000000000001,1]
[null,null,null,null,null,null,null,null,null,null,null,null,null,null,null,null,"ООО \"Энергонефть Томск\"",2023,3.0099999999999998E-2,0.25659999999999999,1]
[null,null,null,null,null,null,null,null,null,null,null,null,null,null,null,null,"ООО \"Энергонефть Томск\"",2024,2.9600000000000001E-2,0.25269999999999998,1]
[null,null,null,null,null,null,null,null,null,null,null,null,null,null,null,null,"ООО \"Энергонефть Томск\"",2025,2.92E-2,0.249,1]
[null,null,null,null,null,null,null,null,null,null,null,null,null,null," ",27,"ООО \"Дорстрой\"",2020,0,0,1]
[null,null,null,null,null,null,null,null,null,null,null,null,null,null,null,null,"ООО \"Дорстрой\"",2021,0,0,1]
[null,null,null,null,null,null,null,null,null,null,null,null,null,null,null,null,"ООО \"Дорстрой\"",2022,0,0,1]
[null,null,null,null,null,null,null,null,null,null,null,null,null,null,null,null,"ООО \"Дорстрой\"",2023,0,0,1]
[null,null,null,null,null,null,null,null,null,null,null,null,null,null,null,null,"ООО \"Дорстрой\"",2024,0,0,1]
[null,null,null,null,null,null,null,null,null,null,null,null,null,null,null,28,"АО \"Черногорэнерго\"",2023,0.11661680917166667,9.0037425033333326E-2,1]
[null,null,null,null,null,null,null,null,null,null,null,null,null,null,null,null,"АО \"Черногорэнерго\"",2024,0.11486755703409167,8.868686365783332E-2,1]
[null,null,null,null,null,null,null,null,null,null,null,null,null,null,null,null,"АО \"Черногорэнерго\"",2025,0.11314454367858029,8.7356560702965824E-2,1]
[null,null,null,null,null,null,null,null,null,null,null,null,null,null,null,null,"АО \"Черногорэнерго\"",2026,0.11144737552340159,8.6046212292421334E-2,1]
[null,null,null,null,null,null,null,null,null,null,null,null,null,null,null,null,"АО \"Черногорэнерго\"",2027,0.10977566489055056,8.4755519108035013E-2,1]
[null,null,null,null,null,null,null,null,null,null,null,null,null,null,null,29,"АО \"Сибирско-Уральская энергетическая компания\"",2023,0.87029674999999995,0.48182259999999999,1.0022859304084719]
[null,null,null,null,null,null,null,null,null,null,null,null,null,null,null,null,{"$f":"Q142","v":"АО \"Сибирско-Уральская энергетическая компания\""},2024,0.85724229874999991,0.47459526099999999,1]
[null,null,null,null,null,null,null,null,null,null,null,null,null,null,null,null,{"$f":"Q143","v":"АО \"Сибирско-Уральская энергетическая компания\""},2025,0.84438366426874989,0.467476332085,1]
[null,null,null,null,null,null,null,null,null,null,null,null,null,null,null,null,"АО \"Сибирско-Уральская энергетическая компания\"",2026,0.83171790930471867,0.460464187103725,1]
[null,null,null,null,null,null,null,null,null,null,null,null,null,null,null,null,"АО \"Сибирско-Уральская энергетическая компания\"",2027,0.81924214066514789,0.4535572242971691,1]
[null,null,null,null,null,null,null,null,null,null,null,null,null,null,null,29]
[]
[]
[]
[]
[]
[]
[]
[]
[]
[]
[]
[]
[]
[]
[]
[]
[]
[]
[null,null,null,null,null,null,null,null,null,null,null,null,null,null,null,null,"Столбец1",2020,null,null,"Столбец1"]
[null,null,null,null,null,null,null,null,null,null,null,null,null,null,null,1,"Филиал ОАО \"РЖД\" Трансэнерго Свердловская дирекция по энергообеспечению (по сетям Ишимской, Егоршинской, Серовской, Тюменской дистанций электроснабжения)",2021,null,null,"Тюменская область"]
[null,null,null,null,null,null,null,null,null,null,null,null,null,null,null,2,"Филиал \"Уральский\" АО \"Оборонэнерго\"",2022,null,null,"Ханты-Мансийский автономный округ - Югра"]
[null,null,null,null,null,null,null,null,null,null,null,null,null,null,null,3,"ООО \"СеверСетьРазвитие\"",2023,null,null,"Ямало-Ненецкий автономный округ"]
[null,null,null,null,null,null,null,null,null,null,null,null,null,null,null,4,"АО «Надымские городские электрические сети»",2024]
[null,null,null,null,null,null,null,null,null,null,null,null,null,null,null,5,"АО \"Уренгойская электросетевая компания",2025]
[null,null,null,null,null,null,null,null,null,null,null,null,null,null,null,6,"АО «Энерго-Газ-Ноябрьск»",2026]
[null,null,null,null,null,null,null,null,null,null,null,null,null,null,null,7,"АО «Губкинские городские электрические сети»",2027]
[null,null,null,null,null,null,null,null,null,null,null,null,null,null,null,8,"ООО «Газпромнефть-Хантос»"]
[null,null,null,null,null,null,null,null,null,null,null,null,null,null,null,9,"АО \"Югорская территориальная энергетическая компания - Региональные сети\""]
[null,null,null,null,null,null,null,null,null,null,null,null,null,null,null,10,"ООО \"Сургутские городские электрические сети\""]
[null,null,null,null,null,null,null,null,null,null,null,null,null,null,null,11,"ООО \"Энергонефть Томск\""]
[null,null,null,null,null,null,null,null,null,null,null,null,null,null,null,12,"ООО «Газпромнефть Энергосистемы»"]
[null,null,null,null,null,null,null,null,null,null,null,null,null,null,null,13,"АО \"ЮРЭСК\""]
[null,null,null,null,null,null,null,null,null,null,null,null,null,null,null,14,"ООО \"Агенство Интеллект-Сервис\""]
[null,null,null,null,null,null,null,null,null,null,null,null,null,null,null,15,"ООО СК \"Восток\""]
[null,null,null,null,null,null,null,null,null,null,null,null,null,null,null,16,"ООО \"Региональная энергетическая компания\""]
[null,null,null,null,null,null,null,null,null,null,null,null,null,null,null,17," ООО \"Элеконт\""]
[null,null,null,null,null,null,null,null,null,null,null,null,null,null,null,18,"АО \"Горэлектросеть\""]
[null,null,null,null,null,null,null,null,null,null,null,null,null,null,null,19,"АО \"Ханты-Мансийские городские электрические сети\""]
[null,null,null,null,null,null,null,null,null,null,null,null,null,null,null,20,"АО \"Россети Тюмень\""]
[null,null,null,null,null,null,null,null,null,null,null,null,null,null,null,21,"АО \"Варьеганэнергонефть\""]
[null,null,null,null,null,null,null,null,null,null,null,null,null,null,null,22,"Филиал ОАО «РЖД» Трансэнерго Свердловская дирекция по энергообеспечению (по сетям Сургутской дистанции электроснабжения)"]
[null,null,null,null,null,null,null,null,null,null,null,null,null,null,null,23,"ПАО «Сургутнефтегаз»"]
[null,null,null,null,null,null,null,null,null,null,null,null,null,null,null,24,"МУП «Сургутские районные электрические сети» муниципального образования Сургутский район"]
[null,null,null,null,null,null,null,null,null,null,null,null,null,null,null,25,"ООО «РН-Юганскнефтегаз»"]
[null,null,null,null,null,null,null,null,null,null,null,null,null,null,null,26,"ООО \"Дорстрой\""]
[null,null,null,null,null,null,null,null,null,null,null,null,null,null,null,27,"ООО «Газпром энерго»"]
[null,null,null,null,null,null,null,null,null,null,null,null,null,null,null,28,"АО \"Сибирско-Уральская энергетическая компания\""]
[null,null,null,null,null,null,null,null,null,null,null,null,null,null,null,29,"АО \"Черногорэнерго\""]
[null,null,null,null,null,null,null,null,null,null,null,null,null,null,null,34]
[null,null,null,null,null,null,null,null,null,null,null,null,null,null,null,35]
[null,null,null,null,null,null,null,null,null,null,null,null,null,null,null,36]
[null,null,null,null,null,null,null,null,null,null,null,null,null,null,null,37]
[null,null,null,null,null,null,null,null,null,null,null,null,null,null,null,38]
[null,null,null,null,null,null,null,null,null,null,null,null,null,null,null,39]
[null,null,null,null,null,null,null,null,null,null,null,null,null,null,null,40]
[null,null,null,null,null,null,null,null,null,null,null,null,null,null,null,41]
[null,null,null,null,null,null,null,null,null,null,null,null,null,null,null,42]
[null,null,null,null,null,null,null,null,null,null,null,null,null,null,null,43]
[null,null,null,null,null,null,null,null,null,null,null,null,null,null,null,44]

{"sheet":"Форма 1.3.","index":5,"n_rows":7,"n_cols":5,"rows_kept":7,"cut":false,"hidden":true,"merged":[[1,1,1,4]]}
[]
[null,"Форма 1.3. Расчет показателя средней продолжительности прекращения передачи электрической энергии потребителям услуг и показателя средней частоты прекращений передачи электрической энергии потребителям услуг сетевой организации"]
[]
[null,"№\nп/п","Наименование составляющей показателя","Метод определения","Примечания"]
[null,"1","Максимальное за расчетный период регулирования число точек поставки потребителей услуг сетевой \nорганизации, шт.",null,"В соответствии с заключенными \nдоговорами по передаче электроэнергии"]
[null,"2","Средняя продолжительность прекращения передачи электрической энергии на точку поставки (Пsaidi), час",{"$f":"IF(ISERR(SUMPRODUCT((Столбец9*Столбец13)*(Столбец8=\"В\")*(Столбец27=1))/D$5),0,SUMPRODUCT((Столбец9*Столбец13)*(Столбец8=\"В\")*(Столбец27=1))/D$5)","v":0},"Сумма произведений по столбцу 9 \nи столбцу 13 формы 8.1, деленная \nна значение пункта 1 Формы 1.3\n(Σ столбец 9 * столбец 13) / пункт 1 \nформы 1.3).\nПри этом учитываются только события, \nпо которым значения в столбце 8 равны \"В\", \nа в столбце 27 равны \"1\""]
[null,"3","Средняя частота прекращений передачи электрической энергии на точку поставки (Пsaifi), шт.",{"$f":"IF(ISERR(SUMIFS(Столбец13,Столбец8,\"В\",Столбец27,1)/D$5),0,SUMIFS(Столбец13,Столбец8,\"В\",Столбец27,1)/D$5)","v":0},"Сумма по столбцу 13 формы 8.1 \nи деленная на значение пункта 1 формы 1.3\n(Σ столбец 13 формы 8.1 / пункт 1 \nформы 1.3).\nПри этом учитываются только события, \nпо которым значения в столбце 8 равны \"В\", \nа в столбце 27 равны \"1\""]

{"sheet":"Форма 1.9.","index":6,"n_rows":12,"n_cols":5,"rows_kept":12,"cut":false,"hidden":true,"merged":[[1,1,1,4]]}
[]
[null,"Форма 1.9. Данные об экономических и технических характеристиках \nи (или) условиях деятельности территориальных сетевых организаций"]
[]
[null,"№\nп/п","Характеристики и (или) условия \nдеятельности сетевой организации","Значение характеристики","Наименование и реквизиты подтверждающих документов \n(в том числе внутренних документов сетевой организации)"]
[null,"1","Протяженность линий электропередачи \nв одноцепном выражении (ЛЭП), км"]
[null,"1.1","Протяженность кабельных линий электропередачи в одноцепном \nвыражении, км"]
[null,"2","Доля кабельных линий электропередачи \nв одноцепном выражении от общей протяженности линий электропередачи \n(Доля КЛ), %"]
[null,"3","Максимальной за год число точек \nпоставки, шт.","(значение из \nформы п. 1 \nформы 1.3 \nприложения 1 \nк методическим указаниям)"]
[null,"4","Число разъединителей и выключателей, шт."]
[null,"5","Средняя летняя температура, °C"]
[null,"6","Номер группы (m) территориальной \nсетевой организации по показателю\nПsaidi","(форма 9.1)","-"]
[null,"7","Номер группы (m) территориальной \nсетевой организации по показателю\nПsaifi","(форма 9.2)","-"]